Cogmind - Beta 9.2 @@@ ROGUE MODE // 2019.11.24 @ 12:28:09 Player: Nalzok Result: Destroyed by G-47 Trooper with Particle Gun Performance ------------- Evolutions (1) 500 Regions Visited (5) 1000 Robots Destroyed (25) 125 Value Destroyed (591) 591 Prototype IDs (24) 480 Alien Tech Used (0) 0 Bonus (300) 300 TOTAL SCORE: 2996 Bonus ------- Aligned with FarCom 300 Cogmind --------- Core Integrity 0/400 Matter 258/300 Energy 100/100 System Corruption 0% Temperature Cool (402) Movement Walking (120) Location -8/Mines Parts ------- > --- POWER (1) -------- (None) > --- PROPULSION (4) --- Aluminum Leg Aluminum Leg > --- UTILITY (2) ------ (None) > --- WEAPON (2) ------- Light Cannon > --- INVENTORY (4) ---- Humpback YOLO Cannon Peak State ------------ > --- POWER ------------ Light Ion Engine > --- PROPULSION ------- Aluminum Leg Aluminum Leg Hover Unit > --- UTILITY ---------- Medium Storage Unit Visual Processing Unit > --- WEAPON ----------- YOLO Cannon > --- INVENTORY -------- Ion Engine Light Ion Engine Improved Signal Interpreter EM Pulse Gun Heavy EM Pulse Gun EM Shotgun Beam Cannon Mini Grenade Launcher [Rating: 28] Favorites ----------- Power Light Ion Engine Engine Light Ion Engine Propulsion Aluminum Leg Leg Aluminum Leg Hover Unit Hover Unit Utility Humpback Storage Humpback Processor Visual Processing Unit Weapon EM Shotgun Energy Gun EM Shotgun Energy Cannon Beam Cannon Ballistic Cannon Light Cannon Launcher Mini Grenade Launcher Build | -11 -10 -9 -9 -9 -8 ------- Run | Scr Mat Mat Min Exi Min Slots Evolved 2 | . . 2 . . . Power . | . . . . . . Propulsion 2 | . . 2 . . . Utility . | . . . . . . Weapon . | . . . . . . Parts Attached 27 | . 3 3 . 4 17 Power 2 | . . . . . 2 Engine 2 | . . . . . 2 Core . | . . . . . . Reactor . | . . . . . . Propulsion 7 | . . 1 . . 6 Treads . | . . . . . . Leg 6 | . . . . . 6 Wheel . | . . . . . . Hover 1 | . . 1 . . . Flight . | . . . . . . Utility 4 | . 2 1 . 1 . Device . | . . . . . . Storage 2 | . 1 . . 1 . Processor 2 | . 1 1 . . . Hackware . | . . . . . . Protection . | . . . . . . Artifact . | . . . . . . Weapon 14 | . 1 1 . 3 9 Energy Gun 9 | . 1 1 . 2 5 Energy Cannon 2 | . . . . 1 1 Ballistic Gun . | . . . . . . Ballistic Cannon 2 | . . . . . 2 Launcher 1 | . . . . . 1 Special Weapon . | . . . . . . Impact Weapon . | . . . . . . Slashing Weapon . | . . . . . . Piercing Weapon . | . . . . . . Special Melee Weapon . | . . . . . . Unidentified Prototypes . | . . . . . . Parts Lost 15 | . . . . . 15 Power 2 | . . . . . 2 Propulsion 6 | . . . . . 6 Utility 1 | . . . . . 1 Weapon 6 | . . . . . 6 Highest Loss Streak 5 | . . . . . 5 Average Slot Usage (%) 82 | . 88 86 88 82 81 Engine 10 | . 14 11 11 11 10 Leg 32 | . 28 22 22 22 39 Hover 4 | . . 9 11 11 . Storage 11 | . 14 11 11 10 10 Processor 3 | . 3 11 11 6 . Energy Gun 16 | . 28 22 22 21 11 Energy Cannon 3 | . . . . . 6 Ballistic Cannon 1 | . . . . . 2 Naked Turns . | . . . . . . Heaviest Build 96 | 10 14 16 16 88 96 Greatest Support 45 | 20 20 20 20 20 45 Greatest Overweight (x) 4 | . . 2 . 4 4 Average Overweight (x) 1 | . . . . 1 2 Largest Inventory Capacity 24 | 6 8 8 8 24 24 Average Capacity 18 | 6 6 8 8 14 23 Most Carried 22 | 5 6 8 8 12 22 Average Carried 12 | 3 5 7 7 8 16 Final Capacity 24 | 6 8 8 8 24 4 Final Carried 12 | 2 6 8 8 12 4 Class Distribution -------------------- 38% | Hauler-Mutant 34% | Mutant 26% | Scavenger-Mutant Dominant Class ---------------- Mutant | -10/Materials Mutant | -9/Materials Mutant | -9/Mines Mutant | -9/Exiles Hauler-Mutant | -8/Mines Resources | -11 -10 -9 -9 -9 -8 ----------- Run | Scr Mat Mat Min Exi Min Matter Collected 439 | 200 10 27 23 40 139 Remotely . | . . . . . . Salvage Created 939 | . 26 27 120 . 766 Parts 54 | . 3 3 5 . 43 Haulers Intercepted . | . . . . . . Recyclers Shooed 4 | . . . . . 4 Parts Field Recycled . | . . . . . . Retrieved Matter . | . . . . . . Parts Self-Destructed . | . . . . . . Prevented . | . . . . . . Kills | -11 -10 -9 -9 -9 -8 ------- Run | Scr Mat Mat Min Exi Min Combat Hostiles Destroyed 17 | . . . . . 17 Guns 8 | . . . . . 8 Cannons 3 | . . . . . 3 AOE 6 | . . . . . 6 Classes Destroyed 8 | . 1 . 2 . 5 Worker 2 | . . . 1 . 1 Tunneler 1 | . . . . . 1 Recycler 3 | . . . 1 . 2 Watcher 2 | . 1 1 . . . Swarmer 7 | . . . . . 7 Grunt 7 | . . . . . 7 Brawler 2 | . . . . . 2 Hunter 1 | . . . . . 1 Best Kill Streak 5 | . 1 1 1 . 5 Combat Bots Only 5 | . . . . . 5 Max Kills in Single Turn 4 | . 1 1 1 . 4 Gunslinging . | . . . . . . Exploded 4 | . . . . . 4 Melee . | . . . . . . Uniques/NPCs Destroyed . | . . . . . . Combat | -11 -10 -9 -9 -9 -8 -------- Run | Scr Mat Mat Min Exi Min Damage Taken 1816 | . . 47 . . 1769 Core 407 | . . . . . 407 Absorbed by Shields . | . . . . . . Core Remaining (%) 100 | 100 100 . . . . Volleys Fired 87 | . 7 1 2 . 77 Largest 2 | . 2 2 2 . 2 Hottest 130 | . 80 80 85 . 130 Shots Fired 136 | . 13 2 4 . 117 Gun 86 | . 13 2 4 . 67 Cannon 49 | . . . . . 49 Launcher 1 | . . . . . 1 Special . | . . . . . . Kinetic 14 | . . . . . 14 Thermal 75 | . 6 1 . . 68 Explosive 1 | . . . . . 1 Electromagnetic 46 | . 7 1 4 . 34 Robot Hit Streak 7 | . 1 1 4 . 7 Robot Miss Streak 6 | . 6 . 1 . 5 Penetration Max . | . . . . . . Secondary Targets . | . . . . . . Shots Hit Robots 76 | . 3 1 2 . 70 Core Hits 47 | . 1 1 2 . 43 Critical Hits . | . . . . . . Critical Kills . | . . . . . . Critical Parts Destroyed . | . . . . . . Melee Attacks . | . . . . . . Impact . | . . . . . . Slashing . | . . . . . . Piercing . | . . . . . . Sneak Attacks . | . . . . . . Combat Hostiles . | . . . . . . Follow-up Attacks . | . . . . . . Damage Inflicted 1567 | . 24 24 38 . 1481 Guns 814 | . 24 24 38 . 728 Cannons 439 | . . . . . 439 Explosions 314 | . . . . . 314 Melee . | . . . . . . Ramming . | . . . . . . Kinetic 109 | . . . . . 109 Thermal 826 | . 24 . . . 802 Explosive 190 | . . . . . 190 Electromagnetic 442 | . . 24 38 . 380 Impact . | . . . . . . Slashing . | . . . . . . Piercing . | . . . . . . Highest Corruption . | . . . . . . Average Corruption . | . . . . . . Corruption Purged . | . . . . . . Overload Shots . | . . . . . . Overflow Damage 5 | . . . . . 5 Projectiles 5 | . . . . . 5 Explosions . | . . . . . . Melee . | . . . . . . Knockbacks 1 | . . . . . 1 Impact . | . . . . . . Kinetic 1 | . . . . . 1 Secondary . | . . . . . . Self-Inflicted Damage 19 | . . . . . 19 Shots 1 | . . . . . 1 Rammed . | . . . . . . Targets Rammed . | . . . . . . Kicked . | . . . . . . Crushed . | . . . . . . Highest Temperature 495 | . 36 9 15 . 495 Average Temperature 156 | . 15 6 10 . 171 Received Heat Transfer 828 | . . 18 . . 810 Effects 17 | . . . . . 17 Shutdowns 4 | . . . . . 4 Energy Bleed 2 | . . . . . 2 Interference 8 | . . . . . 8 Matter Decay 2 | . . . . . 2 Damage (minor) 1 | . . . . . 1 Siege Activations . | . . . . . . Robots Corrupted . | . . . . . . Combat Hostiles . | . . . . . . Parts Fried . | . . . . . . Impact Corruptions . | . . . . . . Robots Melted . | . . . . . . Combat Hostiles . | . . . . . . Parts Melted 1 | . . . . . 1 Heat Transferred 1717 | . 50 . . . 1667 Parts Sabotaged . | . . . . . . Parts Stolen . | . . . . . . Parts Stripped . | . . . . . . Power Chain Reactions 1 | . . . . . 1 Missiles Intercepted . | . . . . . . Alert | -11 -10 -9 -9 -9 -8 ------- Run | Scr Mat Mat Min Exi Min Peak Influence 123 | . 63 48 28 . 123 Average Influence 26 | . 30 33 25 . 25 Maximum Alert Level . | . . . . . . Low Security (%) 100 | 100 100 100 100 . 100 Level 1 . | . . . . . . Level 2 . | . . . . . . Level 3 . | . . . . . . Level 4 . | . . . . . . Level 5 . | . . . . . . High Security . | . . . . . . Max Security . | . . . . . . Squads Dispatched . | . . . . . . Investigation . | . . . . . . Extermination . | . . . . . . Reinforcement . | . . . . . . Assault . | . . . . . . Garrison . | . . . . . . Intercept . | . . . . . . Construction Impeded . | . . . . . . Haulers Reinforced . | . . . . . . Stealth | -11 -10 -9 -9 -9 -8 --------- Run | Scr Mat Mat Min Exi Min Distress Signals . | . . . . . . Communications Jammed . | . . . . . . Distress Signals . | . . . . . . Times Spotted 27 | . 3 2 . . 22 Peak Tracking Total 7 | . 1 1 . . 7 Tactical Retreats 1 | . . . . . 1 Traps | -11 -10 -9 -9 -9 -8 ------- Run | Scr Mat Mat Min Exi Min Traps Triggered 1 | . 1 . . . . Indirectly . | . . . . . . Trap Hack Attempts . | . . . . . . Triggered . | . . . . . . Disarmed . | . . . . . . Reprogrammed . | . . . . . . Reused . | . . . . . . Traps Extracted . | . . . . . . Installed . | . . . . . . Triggered . | . . . . . . Machines | -11 -10 -9 -9 -9 -8 ---------- Run | Scr Mat Mat Min Exi Min Machines Disabled . | . . . . . . Max in Single Turn . | . . . . . . Machines Sabotaged . | . . . . . . Garrisons Compromised . | . . . . . . Overloaded Fab Kills . | . . . . . . Fab Network Shutdowns . | . . . . . . Hacking | -11 -10 -9 -9 -9 -8 --------- Run | Scr Mat Mat Min Exi Min Machines Accessed 5 | . 2 1 1 1 . Terminals 4 | . 2 1 1 . . Fabricators . | . . . . . . Repair Stations . | . . . . . . Recycling Units . | . . . . . . Scanalyzers . | . . . . . . Garrison Access . | . . . . . . Total Hacks 8 | . 3 1 3 1 . Successful 6 | . 3 1 1 1 . Failed 2 | . . . 2 . . Catastrophic . | . . . . . . Database Lockouts . | . . . . . . Manual 1 | . . . . 1 . Terminals 7 | . 3 1 3 . . Fabricators . | . . . . . . Repair Stations . | . . . . . . Recycling Units . | . . . . . . Scanalyzers . | . . . . . . Garrison Access . | . . . . . . Terminal Hacks 6 | . 3 1 1 1 . Prototype ID Bank 1 | . 1 . . . . Locate Traps 2 | . 1 1 . . . Surveillance Status 1 | . 1 . . . . Zone Layout 1 | . . . 1 . . EX-Prototype ID Bank 1 | . . . . 1 . Fabricator Hacks . | . . . . . . Repair Station Hacks . | . . . . . . Recycling Unit Hacks . | . . . . . . Scanalyzer . | . . . . . . Garrison Access Hacks . | . . . . . . Unauthorized Hacks . | . . . . . . Terminals . | . . . . . . Fabricators . | . . . . . . Repair Stations . | . . . . . . Recycling Units . | . . . . . . Scanalyzers . | . . . . . . Garrison Access . | . . . . . . Data Cores Recovered . | . . . . . . Used . | . . . . . . Hacking Detections 1 | . . . 1 . . Full Trace Events . | . . . . . . Feedback Events . | . . . . . . Feedback Blocked . | . . . . . . Robot Schematics Acquired . | . . . . . . Robots Built . | . . . . . . Matter . | . . . . . . Time . | . . . . . . Total Robot Build Rating . | . . . . . . Part Schematics Acquired . | . . . . . . Parts Built . | . . . . . . Matter . | . . . . . . Time . | . . . . . . Total Part Build Rating . | . . . . . . Parts Repaired . | . . . . . . Time . | . . . . . . Parts Recycled . | . . . . . . Recycled Matter . | . . . . . . Retrieved Matter . | . . . . . . Retrieved Components . | . . . . . . Parts Scanalyzed . | . . . . . . Part Schematics Acquired . | . . . . . . Parts Damaged . | . . . . . . Bothacking | -11 -10 -9 -9 -9 -8 ------------ Run | Scr Mat Mat Min Exi Min Used RIF Installer . | . . . . . . Robots Hacked . | . . . . . . Non-combat . | . . . . . . Combat . | . . . . . . Robot Hacks Applied . | . . . . . . Relay Couplers Released . | . . . . . . Robots Rewired . | . . . . . . Allies Hacked . | . . . . . . Hacks Repelled . | . . . . . . Allies | -11 -10 -9 -9 -9 -8 -------- Run | Scr Mat Mat Min Exi Min Total Allies . | . . . . . . Largest Group . | . . . . . . Highest-Rated Group . | . . . . . . Highest-Rated Ally . | . . . . . . Total Orders . | . . . . . . Ally Attacks . | . . . . . . Total Damage . | . . . . . . Kills . | . . . . . . Allies Corrupted . | . . . . . . Allies Melted . | . . . . . . Intel | -11 -10 -9 -9 -9 -8 ------- Run | Scr Mat Mat Min Exi Min Robot Analysis Total . | . . . . . . Derelict Logs Recovered . | . . . . . . Drone Launches . | . . . . . . Drone Recoveries . | . . . . . . Exploration | -11 -10 -9 -9 -9 -8 ------------- Run | Scr Mat Mat Min Exi Min Turns Passed 2822 | 3 228 189 238 562 1602 Spaces Moved 1497 | 1 166 149 172 362 647 Core . | . . . . . . Treads . | . . . . . . Legs 1495 | 1 166 147 172 362 647 Wheels . | . . . . . . Hover 2 | . . 2 . . . Flight . | . . . . . . Fastest Speed 120 | 120 120 120 120 120 180 Average Speed 158 | 120 120 121 120 151 190 Slowest Speed 240 | 120 120 200 120 240 240 Overloaded Moves . | . . . . . . Propulsion Burnouts . | . . . . . . Robots Hopped . | . . . . . . Cave-ins Triggered . | . . . . . . Exploration Rate (%) 40 | 2 36 21 35 65 83 Regions Visited 5 Branch Regions 3 Pre-discovered Areas . | . . . . . . Known Exits Taken . | . . . . . . Unknown Exits Taken 5 | 1 1 1 1 1 . Scrap Searched 2 | . . . . . 2 Spaces Dug . | . . . . . . Terrain Destroyed 15 | . . . . . 15 Melee . | . . . . . . Projectile . | . . . . . . AOE 15 | . . . . . 15 Actions | -11 -10 -9 -9 -9 -8 --------- Run | Scr Mat Mat Min Exi Min Total 1813 | 4 182 155 200 379 893 Wait 167 | . . . 25 . 142 Move 1492 | . 165 148 171 361 647 Hop . | . . . . . . Pick Up 25 | . 5 2 1 7 10 Fast Attach 11 | . 2 1 . 2 6 Attach 7 | . . . . 2 5 Detach 3 | . . . . 3 . Swap 9 | . 1 2 . . 6 Drop 12 | 4 2 1 1 4 . Fire 87 | . 7 1 2 . 77 Melee . | . . . . . . Ram . | . . . . . . Kick . | . . . . . . Crush . | . . . . . . Escape Stasis . | . . . . . . Rewire . | . . . . . . Trap . | . . . . . . Miscellaneous . | . . . . . . Route ------- -11/Scrapyard -10/Materials (discovered 2 exits: *Mat / [*Min]) -9/Materials -9/Mines (discovered 2 exits: [*Mat] / *Exi) -9/Exiles (discovered 2 exits: [*Min x2]) -8/Mines History --------- Turn | Location | Event 4 | -11/Scrapyard | Discovered new exit (range 0) 4 | -11/Scrapyard | Entered Materials 155 | -10/Materials | Discovered new exit (range 12) 224 | -10/Materials | Discovered new exit (range 6) 232 | -10/Materials | Entered another Materials area 232 | -9/Materials | Evolved 2 slots: Propulsion x2 301 | -9/Materials | Build established: Mutant 367 | -9/Materials | Discovered new exit (range 6) 421 | -9/Materials | Entered Mines 453 | -9/Mines | Assembled infested the area 493 | -9/Mines | Discovered new exit (range 8) 654 | -9/Mines | Discovered new exit (range 5) 659 | -9/Mines | Entered Exiles 675 | -9/Exiles | Discovered new exit (range 16) 689 | -9/Exiles | Met 8R-AWN 709 | -9/Exiles | Met EX-HEX 757 | -9/Exiles | Met EX-BIN 771 | -9/Exiles | Aligned with FarCom system 772 | -9/Exiles | Given EX-Vault access code 801 | -9/Exiles | Opened EX-Vault 842 | -9/Exiles | Found YOLO Cannon 888 | -9/Exiles | Warned to stay clear of 0b10 Research branches 921 | -9/Exiles | Met EX-DEC 1194 | -9/Exiles | Discovered new exit (range 14) 1221 | -9/Exiles | Left Exiles lab with YOLO Cannon 1221 | -9/Exiles | Entered Mines 1296 | -8/Mines | Build established: Hauler-Mutant 1327 | -8/Mines | Lost 4 parts (1p1n2w) 2357 | -8/Mines | Build established: Scavenger-Mutant 2490 | -8/Mines | Core integrity fell below 50% 2529 | -8/Mines | Lost 5 parts (2n3w) 2808 | -8/Mines | Core integrity fell below 20% 2823 | -8/Mines | Destroyed by G-47 Trooper with Particle Gun Last Messages --------------- 02512_ K-01 Serf collects debris. 02513_ K-01 Serf destroyed. 02520_ Acquired Aluminum Leg. 02521_ Acquired 44 matter. 02522_ Overheating: System interference. 02522_ Lgt. Cannon temporarily disabled. 02527_ Acquired 10 matter. 02535_ Acquired Lgt. Nuclear Core. 02582_ K-01 Serf collects debris. 02802_ C-30 ARC bursts open, deploying its payload. 02802_ S-10 Pest unfolds itself. 02804_ S-10 Pest destroyed. 02807_ Humpback destroyed. 02808_ Lgt. Angular Momentum Engine destroyed. 02812_ The unstable cave ceiling collapses. 02815_ Aluminum Leg destroyed. 02817_ G-50 Soldier knocked back. 02820_ Adv. Heat Sink melted. 02820_ G-50 Soldier destroyed. 02821_ Particle Gun destroyed. Map ----- +----------------------------------------------------+ | ???## #?????????????## ## ##?? | | ???# #?????????????# #### #??? | | ???# ##?????????????# ##?## ##??? | | ???# #?????????????## ### #??####???? | | ???## ##???????????## #?# #??#####??? | | ????# ##????????### ##?## #?## ###? | | ???## ######??## #???# #?# ## | | ???# #??# #???# ### ! | | ???# #??# ##### # | | ???## ### #??## ## | | ????## #####?# #???## ######### ##? | | ?????## #?????# #???## ##??????## #?? | | ??????### ##?????# ##### ####????## ##?? | | ????????#####??????# ##????####??? | | ???????????????????# #??????????? | | ???????????????????######## #??????????? | | ??????????????????????????# #?????????? | | ??????????????????????????# ## #????????? | | ??????????????????????????# ##### #???????? | | ??????????????????????????# # ##?# #???????? | | ?????????????????????????## %= #?? ##???????? | | ?????????????????????????# %%* ##??# #????????? | | ???????????????# ????????# == ##??# #?????????? | | ???????????????# ??????#* #???????????????? | | ???????????????# ???##!! #???????????????? | | ???????????????# ##@]*[## #??????????????? | | ???????????????# *[[=]##?# #?????????????? | | ???????????????# =%g!*##??? #?????????????? | | ??????????????# g! #????? ##?????????????? | | ??????????????# ##?????##??????????????? | | ??????????????## ### ##??????????????????????? | | ???????????????##???## #????????????????????????? | | ?????????????????????###?????????????????????????? | | ?????????????????????????????????????????????????? | | ?????????????????????????????????????????????????? | | | | | | | | | | | | | | | | | | | | | | | | | | | | | | | +----------------------------------------------------+ Best States ------------- Heat Dissipation 28 Energy Generation 18 Energy Capacity 265 Matter Stores 300 Matter Capacity 300 Sight Range 18 Terrain Scan Density 10 Evasion (%) 40 Item Schematics ----------------- None Robot Schematics ------------------ None Fabricated ------------ Nothing Alien Tech Used ----------------- None Achievements -------------- None Challenges ------------ None Game ------ Seed EtherialCryofiberLoader Manual? 0 Play Time 00:17:26 Cumulative 182.7 hours Start 2019.11.24 @ 11:56:45 End 2019.11.24 @ 12:28:09 Sessions 3 Manual Loads 0 Difficulty Rogue Special Mode None Game No. 299 Rogue 299 Adventurer 0 Explorer 0 Win Type - Total 0 Types 0/0/0/0/0/0/0 Lore% 58 Gallery% 73 Achievement% 44 Wizard Run 0 Options --------- ASCII 1 Keyboard 1 Movement Vi Keybinds 0 Fullscreen 1 Font 14/Cog Map View 72x52 Tactical HUD 1 Map Filters NONE Filters LOW_CONTRAST(13,24,33) Steam 0 RUN: 945d703b-f55e-4e66-9a6a-934a7929ee2a